Department Family,Entity,Date,Expenses Type,Expense Area,Supplier,Transaction Number, Total 
Department of Health,The Christie NHS Foundation Trust,16/05/2019,Drugs,Drugs,ALCURA UK LIMITED,0000614368,"64,683.37"
Department of Health,The Christie NHS Foundation Trust,02/05/2019,Drugs,Christie Medical Physics,ALLIANCE MEDICAL RADIOPHARMACY LIMITED,0000611112,"41,517.06"
Department of Health,The Christie NHS Foundation Trust,30/05/2019,Printing Apr 19-Jun 19,Corporate,APOGEE CORPORATION LTD,0000614206,"32,128.20"
Department of Health,The Christie NHS Foundation Trust,02/05/2019,Drugs,Drugs,BAXTER HEALTHCARE LTD,0000611700,"-87,675.00"
Department of Health,The Christie NHS Foundation Trust,02/05/2019,Drugs,Drugs,BAXTER HEALTHCARE LTD,0000611701,"503,918.33"
Department of Health,The Christie NHS Foundation Trust,02/05/2019,Drugs,Drugs,BAXTER HEALTHCARE LTD,0000612369,"591,768.38"
Department of Health,The Christie NHS Foundation Trust,16/05/2019,Drugs,Drugs,BAXTER HEALTHCARE LTD,0000613708,"478,760.36"
Department of Health,The Christie NHS Foundation Trust,16/05/2019,Drugs,Drugs,BAXTER HEALTHCARE LTD,0000613792,"548,340.82"
Department of Health,The Christie NHS Foundation Trust,16/05/2019,Drugs,Drugs,BAXTER HEALTHCARE LTD,0000613793,"507,309.76"
Department of Health,The Christie NHS Foundation Trust,23/05/2019,Drugs,Drugs,BAXTER HEALTHCARE LTD,0000613794,"495,607.50"
Department of Health,The Christie NHS Foundation Trust,30/05/2019,Drugs,Drugs,BAXTER HEALTHCARE LTD,0000615071,"336,207.60"
Department of Health,The Christie NHS Foundation Trust,09/05/2019,CQC Membership Fee,Quality & Standards,CARE QUALITY COMMISSION,0000613390,"167,191.00"
Department of Health,The Christie NHS Foundation Trust,02/05/2019,Annual Maintenance Cover,Clinical Support & Specialist Surgery,CARESTREAM HEALTH UK LTD,0000612514,"35,006.00"
Department of Health,The Christie NHS Foundation Trust,02/05/2019,Medical Equipment Maintenance Contract,Clinical Support & Specialist Surgery,CPP FACILITIES LLP,0000612498,"179,562.08"
Department of Health,The Christie NHS Foundation Trust,30/05/2019,Medical Equipment Maintenance Contract,Clinical Support & Specialist Surgery,CPP FACILITIES LLP,0000613324,"206,534.08"
Department of Health,The Christie NHS Foundation Trust,30/05/2019,Medical Equipment Maintenance Contract,Clinical Support & Specialist Surgery,CPP FACILITIES LLP,0000613325,"-174,671.29"
Department of Health,The Christie NHS Foundation Trust,02/05/2019,Software Licences,Quality & Standards,DATIX LTD,0000612646,"34,153.06"
Department of Health,The Christie NHS Foundation Trust,23/05/2019,Energy Contract Apr 19,Network Services,EDF ENERGY,0000614443,"50,595.05"
Department of Health,The Christie NHS Foundation Trust,23/05/2019,Energy Contract Apr 19,Network Services,EDF ENERGY,0000614448,"37,953.08"
Department of Health,The Christie NHS Foundation Trust,09/05/2019,Clinical Systems,Capital,ELEKTA  LTD,0000612921,"1,225,829.08"
Department of Health,The Christie NHS Foundation Trust,23/05/2019,Childcare Voucher- May 19,Human Resources,FIDELITI LIMITED,0000615164,"26,649.97"
Department of Health,The Christie NHS Foundation Trust,16/05/2019,Medical Equipment,Clinical Support & Specialist Surgery,GE MEDICAL SYSTEMS LIMITED,0000613001,"27,099.20"
Department of Health,The Christie NHS Foundation Trust,30/05/2019,Medical Equipment,Clinical Support & Specialist Surgery,GE MEDICAL SYSTEMS LIMITED,0000615148,"78,011.94"
Department of Health,The Christie NHS Foundation Trust,09/05/2019,Outpatient Department Furniture,Capital,H JENKINSON&CO LTD,0000612657,"48,024.71"
Department of Health,The Christie NHS Foundation Trust,23/05/2019,Drugs,Drugs,HEALTHCARE AT HOME LTD,0000614846,"28,259.00"
Department of Health,The Christie NHS Foundation Trust,23/05/2019,Computer Equipment,FInance & Business Development,HP INC.UK LIMITED,0000614438,"133,079.82"
Department of Health,The Christie NHS Foundation Trust,02/05/2019,Paterson Development,Capital,INTERSERVE CONSTRUCTION LTD,0000613360,"1,061,305.63"
Department of Health,The Christie NHS Foundation Trust,02/05/2019,Paterson Development,Capital,INTERSERVE CONSTRUCTION LTD,0000613299,"96,173.71"
Department of Health,The Christie NHS Foundation Trust,30/05/2019,Paterson Development,Capital,INTERSERVE CONSTRUCTION LTD,0000615579,"129,843.25"
Department of Health,The Christie NHS Foundation Trust,30/05/2019,Paterson Development,Capital,INTERSERVE CONSTRUCTION LTD,0000615558,"891,625.06"
Department of Health,The Christie NHS Foundation Trust,23/05/2019,Drugs,Drugs,LLOYDSPHARMACY CLINICAL HOMECARE,0000614925,"28,997.40"
Department of Health,The Christie NHS Foundation Trust,07/05/2019,Rates 19/20,Estates & Facilities,M/CR CITY COUNCIL (RATES) DD,0000615101,"77,883.00"
Department of Health,The Christie NHS Foundation Trust,02/05/2019,Paterson Development,Capital,MACE LTD,0000611577,"31,185.11"
Department of Health,The Christie NHS Foundation Trust,02/05/2019,Paterson Development,Capital,MACE LTD,0000611578,"54,132.44"
Department of Health,The Christie NHS Foundation Trust,23/05/2019,Paterson Development,Capital,MACE LTD,0000614688,"31,185.11"
Department of Health,The Christie NHS Foundation Trust,23/05/2019,Paterson Development,Capital,MACE LTD,0000614686,"51,744.00"
Department of Health,The Christie NHS Foundation Trust,09/05/2019,Rates 19/20,Estates & Facilities,MANCHESTER CITY COUNCIL,0000614409,"68,881.00"
Department of Health,The Christie NHS Foundation Trust,02/05/2019,PET Scans Mar 19,Christie Medical Physics,MANCHESTER UNIVERSITY NHS FT,0000613445,"110,304.00"
Department of Health,The Christie NHS Foundation Trust,09/05/2019,Medical Engineering,Christie Medical Physics,MANCHESTER UNIVERSITY NHS FT,0000610405,"25,135.07"
Department of Health,The Christie NHS Foundation Trust,23/05/2019,PET Scans Apr 19,Christie Medical Physics,MANCHESTER UNIVERSITY NHS FT,0000615197,"117,198.00"
Department of Health,The Christie NHS Foundation Trust,02/05/2019,Macmillan Service Nov 18,Network Services,MID CHESHIRE HOSPITALS NHS FT,0000599314,"45,375.83"
Department of Health,The Christie NHS Foundation Trust,02/05/2019,Macmillan Service Dec 18,Network Services,MID CHESHIRE HOSPITALS NHS FT,0000602018,"45,375.83"
Department of Health,The Christie NHS Foundation Trust,02/05/2019,Macmillan Service Jan 19,Network Services,MID CHESHIRE HOSPITALS NHS FT,0000604204,"45,375.83"
Department of Health,The Christie NHS Foundation Trust,02/05/2019,Macmillan Service Feb 19,Network Services,MID CHESHIRE HOSPITALS NHS FT,0000607017,"45,375.83"
Department of Health,The Christie NHS Foundation Trust,02/05/2019,Macmillan Service Mar 19,Network Services,MID CHESHIRE HOSPITALS NHS FT,0000609771,"49,317.87"
Department of Health,The Christie NHS Foundation Trust,15/05/2019,Blood Products,Network Services,NHS BLOOD AND TRANSPLANT,0000615105,"172,291.34"
Department of Health,The Christie NHS Foundation Trust,16/05/2019,Blood Products,Network Services,NHS BLOOD AND TRANSPLANT,0000611519,"27,650.00"
Department of Health,The Christie NHS Foundation Trust,15/05/2019,NHS Litigation (NHSLA),FInance & Business Development,NHS LITIGATION AUTHORITY,0000615104,"111,326.40"
Department of Health,The Christie NHS Foundation Trust,09/05/2019,Stock for all Wards & Departments,All Wards and Departments,NHS SUPPLY CHAIN,0000613384,"56,356.49"
Department of Health,The Christie NHS Foundation Trust,16/05/2019,Stock for all Wards & Departments,All Wards and Departments,NHS SUPPLY CHAIN,0000613665,"76,755.25"
Department of Health,The Christie NHS Foundation Trust,16/05/2019,Stock for all Wards & Departments,All Wards and Departments,NHS SUPPLY CHAIN,0000614055,"58,560.11"
Department of Health,The Christie NHS Foundation Trust,16/05/2019,Stock for all Wards & Departments,All Wards and Departments,NHS SUPPLY CHAIN,0000614057,"56,072.85"
Department of Health,The Christie NHS Foundation Trust,16/05/2019,Stock for all Wards & Departments,All Wards and Departments,NHS SUPPLY CHAIN,0000613419,"47,013.00"
Department of Health,The Christie NHS Foundation Trust,23/05/2019,Stock for all Wards & Departments,All Wards and Departments,NHS SUPPLY CHAIN,0000614165,"44,336.72"
Department of Health,The Christie NHS Foundation Trust,23/05/2019,Stock for all Wards & Departments,All Wards and Departments,NHS SUPPLY CHAIN,0000614621,"31,513.85"
Department of Health,The Christie NHS Foundation Trust,30/05/2019,Stock for all Wards & Departments,All Wards and Departments,NHS SUPPLY CHAIN,0000614903,"60,365.31"
Department of Health,The Christie NHS Foundation Trust,02/05/2019,Macmillan Project Mar 19,Manchester Cancer,SALFORD ROYAL HOSP NHS FT,0000610586,"114,005.02"
Department of Health,The Christie NHS Foundation Trust,02/05/2019,Software Licences,FInance & Business Development,SOFTCAT PLC,0000612555,"125,686.44"
Department of Health,The Christie NHS Foundation Trust,16/05/2019,Software Licences,FInance & Business Development,SOFTCAT PLC,0000612466,"69,768.00"
Department of Health,The Christie NHS Foundation Trust,23/05/2019,Software Licences,FInance & Business Development,SOFTCAT PLC,0000614506,"124,554.68"
Department of Health,The Christie NHS Foundation Trust,09/05/2019,Medway System Support- Mar 19,FInance & Business Development,SYSTEM C HEALTHCARE,0000612559,"24,485.11"
Department of Health,The Christie NHS Foundation Trust,16/05/2019,Patient Testing Service ,Clinical Support & Specialist Surgery,THE CHRISTIE PATHOLOGY PARTNERSHIP LLP,0000612500,"377,837.20"
Department of Health,The Christie NHS Foundation Trust,30/05/2019,Patient Testing Service ,Clinical Support & Specialist Surgery,THE CHRISTIE PATHOLOGY PARTNERSHIP LLP,0000613326,"434,592.07"
Department of Health,The Christie NHS Foundation Trust,30/05/2019,Patient Testing Service ,Clinical Support & Specialist Surgery,THE CHRISTIE PATHOLOGY PARTNERSHIP LLP,0000613327,"-367,545.91"
Department of Health,The Christie NHS Foundation Trust,09/05/2019,Research Project,Research & Development,UNIVERSITY OF LEEDS,0000614140,"102,005.44"
Department of Health,The Christie NHS Foundation Trust,30/05/2019,Research Project,Research & Development,UNIVERSITY OF MANCHESTER,0000614418,"25,500.00"
Department of Health,The Christie NHS Foundation Trust,09/05/2019,Proton Beam Development (PBT),Capital,VARIAN MEDICAL SYSTEMS UK LTD,0000612926,"29,235.00"
Department of Health,The Christie NHS Foundation Trust,16/05/2019,Proton Beam Development (PBT),Capital,VARIAN MEDICAL SYSTEMS UK LTD,0000613490,"219,810.00"
Department of Health,The Christie NHS Foundation Trust,23/05/2019,Proton Beam Development (PBT),Capital,VARIAN MEDICAL SYSTEMS UK LTD,0000614141,"72,500.00"
Department of Health,The Christie NHS Foundation Trust,30/05/2019,Proton Beam Development (PBT),Capital,VARIAN MEDICAL SYSTEMS UK LTD,0000612754,"154,180.98"
Department of Health,The Christie NHS Foundation Trust,09/05/2019,Energy Contract- Mar 19,Estates & Facilities,VEOLIA ENERGY &UTILITY SERVICES UK PLC,0000612717,"235,032.02"
